fUST/lending_fUST_20240228
["ID","MTS","AMOUNT","RATE_DAILY","PERIOD"]
[315460597,1709050246309,-500.0,0.00019452,2]
[315460599,1709050246318,-500.0,0.00019452,2]
[315460602,1709050246328,-500.0,0.00019452,2]
[315460603,1709050246338,-2198.18,0.00019452,2]
[315460606,1709050246347,-500.0,0.00019452,2]
[315460608,1709050246357,-500.0,0.00019452,2]
[315460610,1709050246367,-500.0,0.00019452,2]
[315460612,1709050246376,-5560.64,0.00019452,2]
[315460614,1709050246385,-336.834071,0.00019452,2]
[315460616,1709050246394,-500.0,0.00019452,2]
[315460618,1709050246403,-500.0,0.00019452,2]
[315460620,1709050246413,-500.0,0.00019452,2]
[315460622,1709050246426,-500.0,0.00019452,2]
[315460623,1709050246435,-24225.74,0.00019452,2]
[315460625,1709050246444,-151.0,0.00019452,2]
[315460627,1709050246454,-151.0,0.00019452,2]
[315460629,1709050246463,-151.0,0.00019452,2]
[315460632,1709050246473,-500.0,0.00019452,2]
[315460634,1709050246482,-500.0,0.00019452,2]
[315460636,1709050246492,-500.0,0.00019452,2]
[315460638,1709050246501,-500.0,0.00019452,2]
[315460640,1709050246511,-500.0,0.00019452,2]
[315460641,1709050246521,-5489.01,0.00019452,2]
[315460643,1709050246530,-507.46760466,0.00019452,2]
[315460645,1709050246539,-551.11345887,0.00019452,2]
[315460647,1709050246548,-500.0,0.00019452,2]
[315460649,1709050246558,-500.0,0.00019452,2]
[315460652,1709050246568,-500.0,0.00019452,2]
[315460654,1709050246578,-500.0,0.00019452,2]
[315460655,1709050246587,-500.0,0.00019452,2]
[315460657,1709050246597,-500.0,0.00019452,2]
[315460659,1709050246606,-500.0,0.00019452,2]
[315460661,1709050246616,-1810.45,0.00019452,2]
[315460663,1709050246625,-298.05466901,0.00019452,2]
[315460665,1709050246634,-500.0,0.00019452,2]
[315460667,1709050246644,-500.0,0.00019452,2]
[315460670,1709050246654,-500.0,0.00019452,2]
[315460671,1709050246666,-500.0,0.00019452,2]
[315460673,1709050246675,-500.0,0.00019452,2]
[315460675,1709050246685,-500.0,0.00019452,2]
[315460677,1709050246694,-500.0,0.00019452,2]
[315460679,1709050246703,-500.35101391,0.00019452,2]
[315460682,1709050246713,-500.0,0.00019452,2]
[315460684,1709050246723,-642.46,0.00019452,2]
[315460686,1709050246733,-1686.51,0.00019452,2]
[315460688,1709050246742,-500.0,0.00019452,2]
[315460690,1709050246752,-500.0,0.00019452,2]
[315460692,1709050246768,-563.60361199,0.00019452,2]
[315460694,1709050246778,-500.0,0.00019452,2]
[315460696,1709050246788,-500.0,0.00019452,2]
[315460698,1709050246798,-667.21,0.00019452,2]
[315460700,1709050246808,-8327.91,0.00019452,2]
[315460702,1709050246820,-500.0,0.00019452,2]
[315460704,1709050246829,-500.0,0.00019452,2]
[315460706,1709050246839,-500.0,0.00019452,2]
[315460708,1709050246849,-4029.89,0.00019452,2]
[315460710,1709050246859,-500.0,0.00019452,2]
[315460712,1709050246868,-500.0,0.00019452,2]
[315460714,1709050246878,-500.0,0.00019452,2]
[315460716,1709050246887,-4878.61,0.00019452,2]
[315460718,1709050246896,-3908.86,0.00019452,2]
[315460720,1709050246906,-500.49030211,0.00019452,2]
[315460722,1709050246919,-172.36241238,0.00019452,2]
[315460724,1709050246929,-500.0,0.00019452,2]
[315460726,1709050246938,-183.67121497,0.00019452,2]
[315460728,1709050246947,-500.0,0.00019452,2]
[315460730,1709050246956,-13219.14097566,0.00019452,2]
[315460734,1709050246984,-7922.27902434,0.00019452,2]
[315460736,1709050246993,-3184.25,0.00019452,2]
[315460738,1709050247003,-500.0,0.00019464,2]
[315460740,1709050247012,-153.0,0.00019479,2]
[315460742,1709050247023,-153.0,0.00019479,2]
[315460744,1709050247032,-1013.1,0.00019499,2]
[315460746,1709050247042,-153.0,0.000195,2]
[315460748,1709050247052,-200.6117409,0.000195,2]
[315460750,1709050247062,-153.0,0.000195,2]
[315460751,1709050247072,-401.2234818,0.000195,2]
[315460753,1709050247081,-200.6117409,0.000195,2]
[315460755,1709050247092,-153.0,0.000195,2]
[315460756,1709050247102,-153.0,0.000195,2]
[315460758,1709050247113,-153.0,0.000195,2]
[315460760,1709050247123,-306.0,0.000195,2]
[315460762,1709050247134,-153.0,0.000195,2]
[315460764,1709050247144,-153.0,0.000195,2]
[315460765,1709050247154,-153.0,0.000195,2]
[315460767,1709050247174,-153.0,0.000195,2]
[315460769,1709050247185,-306.0,0.000195,2]
[315460770,1709050247195,-153.0,0.000195,2]
[315460772,1709050247208,-306.0,0.000195,2]
[315460774,1709050247218,-306.0,0.000195,2]
[315460776,1709050247230,-153.0,0.000195,2]
[315460777,1709050247240,-153.0,0.000195,2]
[315460779,1709050247250,-349.6153443,0.000195,2]
[315460781,1709050247260,-153.0,0.000195,2]
[315460783,1709050247270,-153.0,0.000195,2]
[315460785,1709050247280,-153.0,0.000195,2]
[315460786,1709050247290,-153.0,0.000195,2]
[315460788,1709050247301,-153.0,0.000195,2]
[315460790,1709050247311,-153.0,0.000195,2]
[315460792,1709050247322,-153.0,0.000195,2]
[315460794,1709050247333,-306.0,0.000195,2]
[315460796,1709050247343,-295.2105092,0.000195,2]
[315460797,1709050247352,-153.0,0.000195,2]
[315460799,1709050247362,-407.4416141,0.000195,2]
[315460801,1709050247371,-153.0,0.000195,2]
[315460803,1709050247381,-153.0,0.000195,2]
[315460805,1709050247391,-153.0,0.000195,2]
[315460806,1709050247400,-155.5496449,0.000195,2]
[315460808,1709050247410,-153.0,0.000195,2]
[315460810,1709050247428,-153.0,0.000195,2]
[315460812,1709050247437,-153.0,0.000195,2]
[315460814,1709050247447,-153.0,0.000195,2]
[315460822,1709050247536,-153.0,0.000195,2]
[315460824,1709050247547,-153.0,0.000195,2]
[315460826,1709050247557,-153.0,0.000195,2]
[315460827,1709050247566,-153.0,0.000195,2]
[315460829,1709050247576,-153.0,0.000195,2]
[315460831,1709050247585,-359.9410765,0.000195,2]
[315460833,1709050247597,-153.0,0.000195,2]
[315460834,1709050247607,-153.0,0.000195,2]
[315460836,1709050247616,-153.0,0.000195,2]
[315460838,1709050247625,-153.0,0.000195,2]
[315460840,1709050247634,-153.0,0.000195,2]
[315460842,1709050247643,-153.0,0.000195,2]
[315460844,1709050247652,-153.0,0.000195,2]
[315460846,1709050247661,-153.0,0.000195,2]
[315460848,1709050247675,-153.0,0.000195,2]
[315460849,1709050247685,-153.0,0.000195,2]
[315460851,1709050247695,-153.0,0.000195,2]
[315460853,1709050247705,-153.0,0.000195,2]
[315460855,1709050247714,-153.0,0.000195,2]
[315460857,1709050247723,-153.0,0.000195,2]
[315460858,1709050247734,-153.0,0.000195,2]
[315460860,1709050247744,-75.16130729,0.000195,2]
[315460869,1709050247826,-77.83869271,0.000195,2]
[315460871,1709050247836,-153.0,0.000195,2]
[315460873,1709050247845,-153.0,0.000195,2]
[315460874,1709050247855,-888.1071633,0.00019524,2]
[315460877,1709050247866,-1635.01212552,0.00019524,2]
[315460878,1709050247877,-153.0,0.00019562,2]
[315460880,1709050247887,-500.0,0.00019577,2]
[315460881,1709050247897,-153.0,0.00019589,2]
[315460882,1709050247908,-153.0,0.00019589,2]
[315460883,1709050247920,-153.0,0.00019589,2]
[315460884,1709050247930,-200.6117409,0.000196,2]
[315460885,1709050247941,-153.0,0.000196,2]
[315460886,1709050247950,-200.6117409,0.000196,2]
[315460887,1709050247960,-153.0,0.000196,2]
[315460888,1709050247969,-186.70503351,0.00019626,2]
[315460889,1709050247979,-166.666666,0.00019627,2]
[315460890,1709050247989,-153.0,0.00019652,2]
[315460891,1709050247999,-153.0,0.00019652,2]
[315460892,1709050248009,-153.0,0.00019652,2]
[315460893,1709050248019,-306.6949043,0.00019652,2]
[315460894,1709050248029,-153.0,0.00019652,2]
[315460895,1709050248040,-153.0,0.00019652,2]
[315460896,1709050248050,-500.0,0.00019691,2]
[315460897,1709050248061,-153.0,0.000197,2]
[315460898,1709050248071,-153.0,0.000197,2]
[315460899,1709050248081,-306.0,0.000197,2]
[315460900,1709050248091,-153.0,0.000197,2]
[315460901,1709050248101,-200.6117409,0.000197,2]
[315460902,1709050248110,-151.0,0.00019725,2]
[315460903,1709050248119,-1013.1,0.00019725,2]
[315460904,1709050248127,-1013.1,0.00019725,2]
[315460905,1709050248136,-1013.1,0.00019725,2]
[315460906,1709050248147,-1013.1,0.00019725,2]
[315460907,1709050248157,-1013.1,0.00019725,2]
[315460908,1709050248177,-500.0,0.00019726,2]
[315460909,1709050248186,-500.0,0.00019726,2]
[315460910,1709050248196,-500.0,0.00019726,2]
[315460911,1709050248209,-500.0,0.00019726,2]
[315460912,1709050248219,-500.0,0.00019726,2]
[315460913,1709050248229,-500.0,0.00019726,2]
[315460914,1709050248239,-568.85457968,0.00019726,2]
[315460915,1709050248249,-500.0,0.00019726,2]
[315460916,1709050248259,-500.0,0.00019726,2]
[315460917,1709050248269,-500.0,0.00019726,2]
[315460918,1709050248278,-500.0,0.00019726,2]
[315460919,1709050248288,-500.0,0.00019726,2]
[315460921,1709050248297,-500.0,0.00019726,2]
[315460923,1709050248307,-500.0,0.00019726,2]
[315460925,1709050248318,-500.0,0.00019726,2]
[315460927,1709050248328,-500.0,0.00019726,2]
[315460929,1709050248337,-1695.24,0.00019726,2]
[315460931,1709050248346,-500.0,0.00019726,2]
[315460933,1709050248359,-500.0,0.00019726,2]
[315460935,1709050248377,-500.0,0.00019726,2]
[315460938,1709050248393,-500.0,0.00019726,2]
[315460940,1709050248406,-500.0,0.00019726,2]
[315460942,1709050248428,-500.0,0.00019726,2]
[315460945,1709050248442,-500.0,0.00019726,2]
[315460947,1709050248456,-500.0,0.00019726,2]
[315460949,1709050248471,-500.0,0.00019726,2]
[315460952,1709050248485,-216.5862094,0.00019726,2]
[315460954,1709050248497,-500.0,0.00019726,2]
[315460956,1709050248509,-687.05,0.00019726,2]
[315460958,1709050248522,-500.0,0.00019726,2]
[315460960,1709050248535,-4029.97,0.00019726,2]
[315460962,1709050248548,-1818.67,0.00019726,2]
[315460964,1709050248562,-2895.64,0.00019726,2]
[315460967,1709050248575,-1823.07,0.00019726,2]
[315460969,1709050248585,-500.0,0.00019726,2]
[315460971,1709050248600,-500.0,0.00019726,2]
[315460973,1709050248612,-500.0,0.00019726,2]
[315460975,1709050248625,-500.0,0.00019726,2]
[315460978,1709050248638,-923.44,0.00019726,2]
[315460980,1709050248650,-697.61,0.00019726,2]
[315460982,1709050248669,-227.094003,0.00019726,2]
[315460984,1709050248684,-227.094003,0.00019726,2]
[315460986,1709050248700,-227.094003,0.00019726,2]
[315460989,1709050248715,-227.094003,0.00019726,2]
[315460991,1709050248729,-227.094003,0.00019726,2]
[315460993,1709050248740,-227.094003,0.00019726,2]
[315460994,1709050248751,-500.0,0.00019726,2]
[315460996,1709050248765,-500.0,0.00019726,2]
[315460999,1709050248779,-500.0,0.00019726,2]
[315461000,1709050248791,-500.0,0.00019726,2]
[315461001,1709050248805,-500.0,0.00019726,2]
[315461002,1709050248815,-500.0,0.00019726,2]
[315461003,1709050248826,-500.0,0.00019726,2]
[315461004,1709050248837,-282.98479173,0.00019726,2]
[315461005,1709050248849,-500.0,0.00019726,2]
[315461006,1709050248862,-817.96,0.00019726,2]
[315461007,1709050248873,-500.0,0.00019726,2]
[315461008,1709050248885,-500.0,0.00019726,2]
[315461009,1709050248896,-500.0,0.00019726,2]
[315461010,1709050248909,-500.0,0.00019726,2]
[315461011,1709050248925,-775.64,0.00019726,2]
[315461012,1709050248936,-500.0,0.00019726,2]
[315461013,1709050248949,-500.0,0.00019726,2]
[315461014,1709050248962,-420.23584405,0.00019726,2]
[315461015,1709050248975,-500.0,0.00019726,2]
[315461016,1709050248987,-500.0,0.00019726,2]
[315461017,1709050249002,-500.0,0.00019726,2]
[315461018,1709050249015,-500.0,0.00019726,2]
[315461019,1709050249031,-1925.52,0.00019726,2]
[315461020,1709050249044,-1793.5,0.00019726,2]
[315461022,1709050249057,-500.0,0.00019726,2]
[315461023,1709050249070,-500.0,0.00019726,2]
[315461025,1709050249082,-1190.292077,0.00019726,2]
[315461027,1709050249095,-412.3007245,0.00019726,2]
[315461085,1709050249677,-323.99604823,0.00019178,2]
[315461088,1709050249689,-176.00395177,0.00019178,2]
[315461090,1709050249698,-500.0,0.00019452,2]
[315461092,1709050249706,-200.6117409,0.000195,2]
[315461094,1709050249718,-636.28430733,0.00019726,2]
[315461104,1709050249806,-27732.05,0.00019442,3]
[315461106,1709050249815,-141.70704517,0.00019726,2]
[315461108,1709050249824,-1190.292077,0.00019726,2]
[315461110,1709050249833,-500.0,0.00019726,2]
[315461112,1709050249842,-382.1661985,0.00019726,2]
[315461114,1709050249852,-1190.292077,0.00019726,2]
[315461116,1709050249861,-1190.292077,0.00019726,2]
[315461118,1709050249870,-1190.292077,0.00019726,2]
[315461120,1709050249880,-500.0,0.00019726,2]
[315461122,1709050249889,-426.50033035,0.00019726,2]
[315461124,1709050249899,-302.93813241,0.00019726,2]
[315461126,1709050249909,-500.0,0.00019726,2]
[315461128,1709050249922,-500.0,0.00019726,2]
[315461130,1709050249931,-500.0,0.00019726,2]
[315461132,1709050249940,-500.0,0.00019726,2]
[315461134,1709050249949,-500.0,0.00019726,2]
[315461136,1709050249959,-1056.5,0.00019726,2]
[315461138,1709050249970,-500.0,0.00019726,2]
[315461140,1709050249979,-500.0,0.00019726,2]
[315461142,1709050249988,-292.53384056,0.00019726,2]
[315461144,1709050249997,-500.0,0.00019726,2]
[315461146,1709050250006,-722.65,0.00019726,2]
[315461148,1709050250015,-500.0,0.00019726,2]
[315461150,1709050250025,-500.0,0.00019726,2]
[315461152,1709050250035,-373.72715939,0.00019726,2]
[315461154,1709050250045,-339.18134062,0.00019726,2]
[315461156,1709050250060,-631.33865938,0.00019726,2]
[315461158,1709050250070,-500.0,0.00019726,2]
[315461160,1709050250079,-215.56498591,0.00019726,2]
[315461162,1709050250089,-1050.91,0.00019726,2]
[315461164,1709050250098,-258.671015,0.00019726,2]
[315461166,1709050250108,-258.671015,0.00019726,2]
[315461168,1709050250119,-258.671015,0.00019726,2]
[315461170,1709050250130,-1132.13,0.00019726,2]
[315461172,1709050250142,-500.0,0.00019726,2]
[315461174,1709050250152,-217.19381743,0.00019726,2]
[315461176,1709050250170,-258.671015,0.00019726,2]
[315461178,1709050250181,-258.671015,0.00019726,2]
[315461180,1709050250191,-258.671015,0.00019726,2]
[315461182,1709050250203,-500.0,0.00019726,2]
[315461184,1709050250213,-500.0,0.00019726,2]
[315461186,1709050250224,-1473.84,0.00019726,2]
[315461188,1709050250234,-935.67,0.00019726,2]
[315461190,1709050250246,-2357.65,0.00019726,2]
[315461192,1709050250257,-904.43,0.00019726,2]
[315461194,1709050250266,-151.0,0.00019726,2]
[315461196,1709050250278,-299.067643,0.00019726,2]
[315461198,1709050250287,-500.0,0.00019726,2]
[315461200,1709050250297,-500.0,0.00019726,2]
[315461202,1709050250307,-2204.31,0.00019726,2]
[315461204,1709050250316,-500.0,0.00019726,2]
[315461206,1709050250326,-500.0,0.00019726,2]
[315461208,1709050250339,-500.0,0.00019726,2]
[315461210,1709050250350,-237.52081382,0.00019726,2]
[315461212,1709050250360,-2602.38,0.00019726,2]
[315461215,1709050250371,-500.0,0.00019726,2]
[315461216,1709050250381,-500.0,0.00019726,2]
[315461218,1709050250391,-500.0,0.00019726,2]
[315461220,1709050250401,-500.0,0.00019726,2]
[315461222,1709050250411,-500.0,0.00019726,2]
[315461225,1709050250427,-11034.35,0.00019726,2]
[315461226,1709050250436,-3042.67,0.00019726,2]
[315461228,1709050250446,-500.0,0.00019726,2]
[315461230,1709050250455,-500.0,0.00019726,2]
[315461232,1709050250465,-2198.18,0.00019726,2]
[315461234,1709050250474,-500.0,0.00019726,2]
[315461236,1709050250484,-500.0,0.00019726,2]
[315461239,1709050250494,-500.0,0.00019726,2]
[315461241,1709050250504,-5560.64,0.00019726,2]
[315461242,1709050250514,-500.0,0.00019726,2]
[315461244,1709050250524,-500.0,0.00019726,2]
[315461246,1709050250534,-500.0,0.00019726,2]
[315461248,1709050250543,-15328.9362112,0.00019726,2]
[315461261,1709050250662,-321.02000001,0.00019726,2]
[315462389,1709050675087,24900.0,0.00017927,2]
[315462395,1709051061313,233.847312,0.00017813,2]
[315462397,1709051124928,3679.0196579,0.00017813,2]
[315462533,1709051438333,-155.16292107,0.00018234,2]
[315462534,1709051438342,-155.16292107,0.00018248,2]
[315462535,1709051438352,-1260.3186205,0.00018251,2]
[315462536,1709051438361,-704.4424411,0.000189,2]
[315462537,1709051438372,-489.18,0.00019168,3]
[315462538,1709051438381,-5676.70333107,0.00019175,4]
[315462539,1709051438394,-2179.63010643,0.00019175,4]
[315462540,1709051438404,-167.66075257,0.00019178,2]
[315462541,1709051438520,-353.52125509,0.00019178,2]
[315462542,1709051438531,-323.32395366,0.00019178,2]
[315462543,1709051438541,-500.0,0.00019178,2]
[315462544,1709051438552,-500.0,0.00019178,2]
[315462545,1709051438561,-672.91,0.00019178,2]
[315462546,1709051438571,-500.0,0.00019178,2]
[315462547,1709051438580,-500.0,0.00019178,2]
[315462548,1709051438589,-778.21,0.00019178,2]
[315462549,1709051438598,-500.0,0.00019178,2]
[315462550,1709051438607,-417.34105156,0.00019178,2]
[315462551,1709051438616,-387.09200169,0.00019178,2]
[315462552,1709051438635,-112.90799831,0.00019178,2]
[315462553,1709051438645,-500.0,0.00019178,2]
[315462554,1709051438654,-699.52,0.00019178,2]
[315462555,1709051438663,-500.0,0.00019178,2]
[315462556,1709051438672,-500.0,0.00019178,2]
[315462557,1709051438682,-500.0,0.00019178,2]
[315462558,1709051438691,-500.0,0.00019178,2]
[315462559,1709051438701,-210.28380948,0.00019178,2]
[315462560,1709051438713,-636.90447411,0.00019178,2]
[315462561,1709051438723,-279.30791777,0.00019178,2]
[315462562,1709051438732,-500.0,0.00019178,2]
[315462563,1709051438741,-500.0,0.00019178,2]
[315462564,1709051438750,-282.6196593,0.00019178,2]
[315462565,1709051438760,-501.13519098,0.00019178,2]
[315462566,1709051438770,-378.09595608,0.00019178,2]
[315462567,1709051438779,-588.21769024,0.00019178,2]
[315462568,1709051438787,-151.0,0.00019178,2]
[315462569,1709051438797,-501.70061197,0.00019178,2]
[315462570,1709051438806,-724.93,0.00019178,2]
[315462571,1709051438815,-500.0,0.00019178,2]
[315462572,1709051438824,-500.0,0.00019178,2]
[315462573,1709051438834,-500.0,0.00019178,2]
[315462574,1709051438843,-500.0,0.00019178,2]
[315462575,1709051438853,-500.0,0.00019178,2]
[315462576,1709051438862,-870.51,0.00019178,2]
[315462577,1709051438872,-1432.64,0.00019178,2]
[315462578,1709051438881,-500.0,0.00019178,2]
[315462579,1709051438890,-1025.83,0.00019178,2]
[315462580,1709051438900,-601.56155229,0.00019178,2]
[315462581,1709051438909,-500.0,0.00019178,2]
[315462582,1709051438918,-500.0,0.00019178,2]
[315462583,1709051438927,-500.0,0.00019178,2]
[315462584,1709051438936,-500.0,0.00019178,2]
[315462585,1709051438945,-500.0,0.00019178,2]
[315462586,1709051438954,-500.0,0.00019178,2]
[315462587,1709051438966,-500.82063476,0.00019178,2]
[315462588,1709051438976,-500.0,0.00019178,2]
[315462589,1709051438986,-500.0,0.00019178,2]
[315462590,1709051438994,-500.0,0.00019178,2]
[315462591,1709051439004,-500.0,0.00019178,2]
[315462592,1709051439013,-246.96258692,0.00019178,2]
[315462611,1709051441575,-253.03741308,0.00019178,2]
[315462613,1709051441585,-336.834071,0.00019178,2]
[315462615,1709051441594,-500.0,0.00019178,2]
[315462617,1709051441603,-500.0,0.00019178,2]
[315462619,1709051441613,-500.0,0.00019178,2]
[315462621,1709051441622,-500.0,0.00019178,2]
[315462623,1709051441631,-500.0,0.00019178,2]
[315462625,1709051441640,-500.0,0.00019178,2]
[315462627,1709051441650,-500.0,0.00019178,2]
[315462629,1709051441659,-500.0,0.00019178,2]
[315462631,1709051441668,-500.0,0.00019178,2]
[315462634,1709051441680,-500.0,0.00019178,2]
[315462636,1709051441690,-500.0,0.00019178,2]
[315462638,1709051441699,-2010.28,0.00019178,2]
[315462640,1709051441709,-500.0,0.00019178,2]
[315462642,1709051441722,-500.0,0.00019178,2]
[315462643,1709051441731,-500.79176669,0.00019178,2]
[315462645,1709051441740,-500.35101391,0.00019178,2]
[315462647,1709051441749,-500.0,0.00019178,2]
[315462650,1709051441759,-500.0,0.00019178,2]
[315462651,1709051441768,-500.94944783,0.00019178,2]
[315462654,1709051441778,-563.60361199,0.00019178,2]
[315462656,1709051441788,-1756.03,0.00019178,2]
[315462658,1709051441798,-500.0,0.00019178,2]
[315462660,1709051441808,-500.0,0.00019178,2]
[315462662,1709051441818,-395.16181797,0.00019178,2]
[315462664,1709051441827,-172.36241238,0.00019178,2]
[315462666,1709051441837,-500.0,0.00019178,2]
[315462668,1709051441847,-589.1944947,0.00019178,2]
[315462670,1709051441857,-500.0,0.00019178,2]
[315462672,1709051441866,-500.0,0.00019178,2]
[315462674,1709051441876,-500.0,0.00019178,2]
[315462676,1709051441886,-500.0,0.00019178,2]
[315462678,1709051441895,-355.86350824,0.00019178,2]
[315462680,1709051441905,-500.0,0.00019178,2]
[315462682,1709051441914,-500.0,0.00019178,2]
[315462683,1709051441923,-500.0,0.00019178,2]
[315462685,1709051441932,-500.9993525,0.00019178,2]
[315462687,1709051441941,-155.0,0.00019178,2]
[315462689,1709051441951,-500.0,0.00019178,2]
[315462691,1709051441960,-500.0,0.00019178,2]
[315462693,1709051441974,-500.0,0.00019178,2]
[315462696,1709051441985,-1030.96,0.00019178,2]
[315462698,1709051441994,-500.0,0.00019178,2]
[315462699,1709051442003,-501.35115534,0.00019178,2]
[315462701,1709051442013,-500.0,0.00019178,2]
[315462704,1709051442022,-391.22819217,0.00019178,2]
[315462706,1709051442031,-500.0,0.00019178,2]
[315462708,1709051442040,-501.72333826,0.00019178,2]
[315462710,1709051442049,-500.0,0.00019178,2]
[315462712,1709051442060,-500.0,0.00019178,2]
[315462713,1709051442070,-500.0,0.00019178,2]
[315462715,1709051442079,-500.0,0.00019178,2]
[315462717,1709051442088,-500.0,0.00019178,2]
[315462719,1709051442097,-500.0,0.00019178,2]
[315462721,1709051442106,-500.0,0.00019178,2]
[315462724,1709051442116,-500.0,0.00019178,2]
[315462726,1709051442125,-500.0,0.00019178,2]
[315462728,1709051442135,-500.0,0.00019178,2]
[315462730,1709051442144,-920.2,0.00019178,2]
[315462732,1709051442153,-500.0,0.00019178,2]
[315462734,1709051442162,-500.0,0.00019178,2]
[315462736,1709051442171,-2290.94,0.00019178,2]
[315462737,1709051442180,-500.0,0.00019178,2]
[315462739,1709051442189,-500.0,0.00019178,2]
[315462741,1709051442199,-588.88834947,0.00019178,2]
[315462743,1709051442208,-500.0,0.00019178,2]
[315462745,1709051442221,-500.0,0.00019178,2]
[315462747,1709051442230,-500.0,0.00019178,2]
[315462749,1709051442239,-500.0,0.00019178,2]
[315462751,1709051442249,-500.0,0.00019178,2]
[315462753,1709051442258,-500.0,0.00019178,2]
[315462755,1709051442267,-151.97029504,0.00019178,2]
[315462757,1709051442275,-500.0,0.00019178,2]
[315462759,1709051442284,-2958.25,0.00019178,2]
[315462761,1709051442294,-500.0,0.00019178,2]
[315462764,1709051442303,-500.0,0.00019178,2]
[315462765,1709051442313,-11182.72,0.00019178,2]
[315462767,1709051442324,-500.0,0.00019178,2]
[315462770,1709051442333,-247.30975943,0.00019178,2]
[315462772,1709051442347,-252.69024057,0.00019178,2]
[315462774,1709051442356,-50.17686813,0.00019178,2]
[315462776,1709051442368,-449.82313187,0.00019178,2]
[315462778,1709051442377,-2627.35455822,0.00019178,2]
[315462780,1709051442388,-2041.90313987,0.00019178,2]
[315462793,1709051442497,-938.40230191,0.00019178,2]
[315462795,1709051442506,-2121.23,0.00019178,2]
[315462797,1709051442515,-500.0,0.00019178,2]
[315462799,1709051442524,-500.0,0.00019178,2]
[315462801,1709051442536,-500.0,0.00019178,2]
[315462803,1709051442545,-500.0,0.00019178,2]
[315462805,1709051442557,-500.0,0.00019178,2]
[315462807,1709051442565,-500.0,0.00019178,2]
[315462809,1709051442575,-849.57918703,0.00019178,2]
[315462811,1709051442588,-746.46081297,0.00019178,2]
[315462813,1709051442597,-500.0,0.00019178,2]
[315462815,1709051442607,-473.6876327,0.00019178,2]
[315462886,1709051443383,-26.3123673,0.00019178,2]
[315462887,1709051443392,-500.0,0.00019178,2]
[315462888,1709051443401,-1546.49046894,0.00019178,2]
[315462889,1709051443413,-3838.5735618,0.00019178,2]
[315462897,1709051443524,-3.91596926,0.00019178,2]
[315462899,1709051443534,-1071.08403104,0.00019178,2]
[315463129,1709051446292,-1591.10596896,0.00019178,2]
[315463130,1709051446302,-551.11345887,0.00019178,2]
[315463131,1709051446312,-500.0,0.00019178,2]
[315463132,1709051446321,-2140.55,0.00019178,2]
[315463133,1709051446333,-7474.65708144,0.00019178,2]
[315463134,1709051446354,-531.542036,0.00019178,2]
[315463135,1709051446366,-1145.16705967,0.00019178,2]
[315463136,1709051446379,-2857.89692216,0.00019178,2]
[315463214,1709052638481,-155.15515516,0.00018006,2]
[315463215,1709052638490,-155.15515516,0.00018006,2]
[315463217,1709052638499,-162.15450539,0.00018007,2]
[315463219,1709052638508,-206.125473,0.00018108,2]
[315463221,1709052638517,-80.41024968,0.000189,2]